[Event "Titled Tuesday Blitz June 20 Late 2023"]
[White "Ibarra Jerez, Jose Carlos"]
[Black "Janaszak, Dawid"]
[WhiteFideId "2226332"]
[BlackFideId "1119206"]
[WhiteElo "2631"]
[BlackElo "2220"]
[Result "1-0"]
[Round "2"]
[TimeControl "180+2"]
[Date "2023.06.20"]
[WhiteClock "0:01:01"]
[BlackClock "0:00:00"]
[Board "29"]

1. Nf3 {[%clk 0:02:59]}  g6 {[%clk 0:02:59]} 2. e4 {[%clk 0:02:59]}  Bg7 {[%clk 0:02:57]} 3. d4 {[%clk 0:02:59]}  d6 {[%clk 0:02:57]} 4. Nc3 {[%clk 0:02:58]}  Bg4 {[%clk 0:02:53]} 5. Be3 {[%clk 0:02:56]}  Nc6 {[%clk 0:02:52]} 6. Bc4 {[%clk 0:02:55]}  e6 {[%clk 0:02:51]} 7. d5 {[%clk 0:02:53]}  exd5 {[%clk 0:02:51]} 8. Qxd5 {[%clk 0:02:49]}  Be6 {[%clk 0:02:43]} 9. Qb5 {[%clk 0:02:44]}  a6 {[%clk 0:02:09]} 10. Qb3 {[%clk 0:02:43]}  Na5 {[%clk 0:01:39]} 11. Qa4+ {[%clk 0:02:42]}  b5 {[%clk 0:01:27]} 12. Qxa5 {[%clk 0:02:35]}  Bxc4 {[%clk 0:01:26]} 13. Bd4 {[%clk 0:02:31]}  Bxd4 {[%clk 0:01:19]} 14. Nxd4 {[%clk 0:02:32]}  c5 {[%clk 0:00:45]} 15. Nc6 {[%clk 0:02:21]}  Qd7 {[%clk 0:00:40]} 16. Qb6 {[%clk 0:02:18]}  b4 {[%clk 0:00:28]} 17. Nd5 {[%clk 0:02:16]}  Bxd5 {[%clk 0:00:19]} 18. exd5 {[%clk 0:02:17]}  Nf6 {[%clk 0:00:17]} 19. O-O-O {[%clk 0:02:12]}  O-O {[%clk 0:00:18]} 20. f3 {[%clk 0:02:04]}  Rfe8 {[%clk 0:00:17]} 21. Rd2 {[%clk 0:01:52]}  Re3 {[%clk 0:00:16]} 22. Rhd1 {[%clk 0:01:48]}  Rae8 {[%clk 0:00:16]} 23. Qxa6 {[%clk 0:01:44]}  Nh5 {[%clk 0:00:15]} 24. Na5 {[%clk 0:01:37]}  Nf4 {[%clk 0:00:12]} 25. Nc4 {[%clk 0:01:34]}  R3e7 {[%clk 0:00:10]} 26. Qxd6 {[%clk 0:01:33]}  Qf5 {[%clk 0:00:10]} 27. g4 {[%clk 0:01:27]}  Qg5 {[%clk 0:00:10]} 28. h4 {[%clk 0:01:27]}  Ne2+ {[%clk 0:00:08]} 29. Kb1 {[%clk 0:01:27]}  Qxh4 {[%clk 0:00:04]} 30. Qxc5 {[%clk 0:01:25]}  Nf4 {[%clk 0:00:03]} 31. d6 {[%clk 0:01:23]}  Re1 {[%clk 0:00:03]} 32. d7 {[%clk 0:01:20]}  Rxd1+ {[%clk 0:00:03]} 33. Rxd1 {[%clk 0:01:20]}  Rd8 {[%clk 0:00:04]} 34. Ne5 {[%clk 0:01:08]}  Ne6 {[%clk 0:00:04]} 35. Qxb4 {[%clk 0:01:08]}  Qf6 {[%clk 0:00:04]} 36. Qd6 {[%clk 0:01:05]}  h5 {[%clk 0:00:03]} 37. gxh5 {[%clk 0:01:05]}  gxh5 {[%clk 0:00:03]} 38. a4 {[%clk 0:01:03]}  h4 {[%clk 0:00:03]} 39. Nc6 {[%clk 0:01:02]}  Nf8 {[%clk 0:00:00]} 40. Qxf6 {[%clk 0:01:01]} 1-0


[Site "https://www.chess.com"]

[Event "Titled Tuesday Blitz June 20 Late 2023"]
[White "MKlose11"]
[Black "Sjugirov, Sanan"]
[BlackFideId "4189302"]
[WhiteElo "2592"]
[BlackElo "2569"]
[Result "1/2-1/2"]
[Round "2"]
[TimeControl "180+2"]
[Date "2023.06.20"]
[WhiteClock "0:00:14"]
[BlackClock "0:00:06"]
[Board "30"]

1. e4 {[%clk 0:03:00]}  c5 {[%clk 0:02:59]} 2. Nc3 {[%clk 0:02:59]}  d6 {[%clk 0:02:59]} 3. g3 {[%clk 0:02:58]}  Nc6 {[%clk 0:02:58]} 4. d3 {[%clk 0:02:58]}  g6 {[%clk 0:02:59]} 5. Bg2 {[%clk 0:02:56]}  Bg7 {[%clk 0:02:59]} 6. Be3 {[%clk 0:02:56]}  e6 {[%clk 0:02:57]} 7. Qd2 {[%clk 0:02:56]}  Nge7 {[%clk 0:02:55]} 8. Bh6 {[%clk 0:02:56]}  Bxh6 {[%clk 0:02:55]} 9. Qxh6 {[%clk 0:02:55]}  Nd4 {[%clk 0:02:55]} 10. Qd2 {[%clk 0:02:55]}  Rb8 {[%clk 0:02:51]} 11. Nd1 {[%clk 0:02:55]}  Ndc6 {[%clk 0:02:21]} 12. h4 {[%clk 0:02:54]}  h5 {[%clk 0:02:20]} 13. Ne2 {[%clk 0:02:53]}  e5 {[%clk 0:02:17]} 14. O-O {[%clk 0:02:53]}  O-O {[%clk 0:02:17]} 15. Qh6 {[%clk 0:02:50]}  f6 {[%clk 0:02:08]} 16. Ne3 {[%clk 0:02:31]}  Rf7 {[%clk 0:02:07]} 17. Nd5 {[%clk 0:02:30]}  Qf8 {[%clk 0:02:01]} 18. Nxe7+ {[%clk 0:02:19]}  Nxe7 {[%clk 0:02:00]} 19. Qe3 {[%clk 0:02:13]}  Nc6 {[%clk 0:01:52]} 20. f4 {[%clk 0:02:13]}  Bg4 {[%clk 0:01:51]} 21. Nc3 {[%clk 0:02:09]}  Nd4 {[%clk 0:01:47]} 22. Rf2 {[%clk 0:02:09]}  Be6 {[%clk 0:01:40]} 23. Raf1 {[%clk 0:02:07]}  Qh6 {[%clk 0:01:22]} 24. Qd2 {[%clk 0:01:51]}  Kg7 {[%clk 0:01:11]} 25. Nd1 {[%clk 0:01:30]}  Rbf8 {[%clk 0:01:02]} 26. Ne3 {[%clk 0:01:29]}  exf4 {[%clk 0:00:29]} 27. Rxf4 {[%clk 0:01:26]}  g5 {[%clk 0:00:29]} 28. R4f2 {[%clk 0:01:20]}  gxh4 {[%clk 0:00:25]} 29. gxh4 {[%clk 0:01:20]}  Kh8 {[%clk 0:00:24]} 30. c3 {[%clk 0:01:19]}  Nc6 {[%clk 0:00:20]} 31. d4 {[%clk 0:01:20]}  cxd4 {[%clk 0:00:20]} 32. cxd4 {[%clk 0:01:21]}  Bd7 {[%clk 0:00:18]} 33. Nf5 {[%clk 0:01:09]}  Qxd2 {[%clk 0:00:19]} 34. Rxd2 {[%clk 0:01:10]}  Bxf5 {[%clk 0:00:12]} 35. Rxf5 {[%clk 0:01:11]}  Rh7 {[%clk 0:00:10]} 36. Bf3 {[%clk 0:01:06]}  Kg7 {[%clk 0:00:04]} 37. Kf2 {[%clk 0:01:02]}  Ne7 {[%clk 0:00:03]} 38. Ra5 {[%clk 0:00:56]}  a6 {[%clk 0:00:03]} 39. Rxh5 {[%clk 0:00:55]}  Rxh5 {[%clk 0:00:03]} 40. Bxh5 {[%clk 0:00:56]}  Rh8 {[%clk 0:00:04]} 41. Bf3 {[%clk 0:00:55]}  Rxh4 {[%clk 0:00:05]} 42. Kg3 {[%clk 0:00:55]}  Rh6 {[%clk 0:00:04]} 43. Rc2 {[%clk 0:00:54]}  Nc6 {[%clk 0:00:04]} 44. Rc4 {[%clk 0:00:52]}  Kf8 {[%clk 0:00:03]} 45. e5 {[%clk 0:00:43]}  fxe5 {[%clk 0:00:02]} 46. Bxc6 {[%clk 0:00:43]}  bxc6 {[%clk 0:00:01]} 47. Rxc6 {[%clk 0:00:42]}  exd4 {[%clk 0:00:02]} 48. Rxa6 {[%clk 0:00:42]}  Re6 {[%clk 0:00:02]} 49. Ra4 {[%clk 0:00:32]}  Re2 {[%clk 0:00:02]} 50. Rb4 {[%clk 0:00:28]}  d3 {[%clk 0:00:02]} 51. Kf3 {[%clk 0:00:28]}  Rd2 {[%clk 0:00:01]} 52. Ke3 {[%clk 0:00:25]}  Rd1 {[%clk 0:00:01]} 53. Rb3 {[%clk 0:00:24]}  Ra1 {[%clk 0:00:01]} 54. a3 {[%clk 0:00:22]}  Ke7 {[%clk 0:00:02]} 55. Kxd3 {[%clk 0:00:21]}  d5 {[%clk 0:00:03]} 56. Rb6 {[%clk 0:00:21]}  Rd1+ {[%clk 0:00:02]} 57. Kc3 {[%clk 0:00:20]}  Kd7 {[%clk 0:00:02]} 58. a4 {[%clk 0:00:20]}  Rc1+ {[%clk 0:00:02]} 59. Kd4 {[%clk 0:00:20]}  Rc4+ {[%clk 0:00:02]} 60. Kxd5 {[%clk 0:00:21]}  Rxa4 {[%clk 0:00:03]} 61. Rb7+ {[%clk 0:00:17]}  Kc8 {[%clk 0:00:03]} 62. Rb5 {[%clk 0:00:15]}  Ra6 {[%clk 0:00:03]} 63. b4 {[%clk 0:00:15]}  Rh6 {[%clk 0:00:03]} 64. Kc4 {[%clk 0:00:14]}  Kc7 {[%clk 0:00:03]} 65. Rf5 {[%clk 0:00:14]}  Kb7 {[%clk 0:00:03]} 66. Kb5 {[%clk 0:00:14]}  Rb6+ {[%clk 0:00:03]} 67. Kc4 {[%clk 0:00:14]}  Rc6+ {[%clk 0:00:04]} 68. Rc5 {[%clk 0:00:15]}  Rg6 {[%clk 0:00:04]} 69. Kb5 {[%clk 0:00:15]}  Rb6+ {[%clk 0:00:04]} 70. Kc4 {[%clk 0:00:15]}  Rg6 {[%clk 0:00:05]} 71. Rd5 {[%clk 0:00:14]}  Rc6+ {[%clk 0:00:05]} 72. Kd4 {[%clk 0:00:15]}  Rg6 {[%clk 0:00:06]} 73. Ke5 {[%clk 0:00:15]}  Rh6 {[%clk 0:00:06]} 74. Kd4 {[%clk 0:00:13]}  Rg6 {[%clk 0:00:05]} 75. Kc5 {[%clk 0:00:14]}  Rc6+ {[%clk 0:00:05]} 76. Kd4 {[%clk 0:00:14]}  Rg6 {[%clk 0:00:06]} 1/2-1/2


[Site "https://www.chess.com"]

[Event "Titled Tuesday Blitz June 20 Late 2023"]
[White "Iturrizaga Bonelli, Eduardo"]
[Black "Hajiyev, Kanan"]
[WhiteFideId "3901211"]
[BlackFideId "13404148"]
[WhiteElo "2647"]
[BlackElo "2115"]
[Result "1-0"]
[Round "2"]
[TimeControl "180+2"]
[Date "2023.06.20"]
[WhiteClock "0:02:16"]
[BlackClock "0:00:02"]
[Board "34"]

1. d4 {[%clk 0:03:00]}  Nf6 {[%clk 0:02:59]} 2. Nf3 {[%clk 0:03:00]}  e6 {[%clk 0:02:58]} 3. c4 {[%clk 0:03:01]}  Bb4+ {[%clk 0:02:56]} 4. Nbd2 {[%clk 0:03:01]}  Bxd2+ {[%clk 0:02:57]} 5. Bxd2 {[%clk 0:03:01]}  O-O {[%clk 0:02:57]} 6. g3 {[%clk 0:03:01]}  c5 {[%clk 0:02:56]} 7. Bg2 {[%clk 0:03:01]}  Nc6 {[%clk 0:02:53]} 8. dxc5 {[%clk 0:03:01]}  Ne4 {[%clk 0:02:46]} 9. O-O {[%clk 0:03:01]}  Nxc5 {[%clk 0:02:45]} 10. Qc2 {[%clk 0:03:01]}  a5 {[%clk 0:02:42]} 11. Rfd1 {[%clk 0:03:01]}  b6 {[%clk 0:02:40]} 12. Bc3 {[%clk 0:02:58]}  Bb7 {[%clk 0:02:36]} 13. h4 {[%clk 0:02:58]}  h6 {[%clk 0:02:29]} 14. Rd6 {[%clk 0:02:57]}  Qe7 {[%clk 0:02:20]} 15. Rad1 {[%clk 0:02:57]}  Rfd8 {[%clk 0:02:19]} 16. a3 {[%clk 0:02:56]}  a4 {[%clk 0:02:14]} 17. h5 {[%clk 0:02:55]}  Ba6 {[%clk 0:02:06]} 18. Ne5 {[%clk 0:02:41]}  Nxe5 {[%clk 0:02:00]} 19. Bxe5 {[%clk 0:02:42]}  Rab8 {[%clk 0:01:39]} 20. R6d4 {[%clk 0:02:41]}  Rbc8 {[%clk 0:01:35]} 21. Rg4 {[%clk 0:02:39]}  f6 {[%clk 0:01:25]} 22. Bf4 {[%clk 0:02:40]}  f5 {[%clk 0:01:03]} 23. Rg6 {[%clk 0:02:36]}  Kh8 {[%clk 0:00:44]} 24. Be5 {[%clk 0:02:35]}  Ne4 {[%clk 0:00:25]} 25. Rxg7 {[%clk 0:02:24]}  Qxg7 {[%clk 0:00:25]} 26. Bxg7+ {[%clk 0:02:25]}  Kxg7 {[%clk 0:00:26]} 27. Bxe4 {[%clk 0:02:18]}  Rxc4 {[%clk 0:00:25]} 28. Qd3 {[%clk 0:02:18]}  fxe4 {[%clk 0:00:24]} 29. Qd6 {[%clk 0:02:18]}  Kf6 {[%clk 0:00:15]} 30. Qf4+ {[%clk 0:02:16]}  Kg7 {[%clk 0:00:13]} 31. Qg4+ {[%clk 0:02:15]}  Kf8 {[%clk 0:00:10]} 32. Qg6 {[%clk 0:02:16]}  Rc2 {[%clk 0:00:06]} 33. Qxh6+ {[%clk 0:02:16]}  Ke7 {[%clk 0:00:07]} 34. Qg5+ {[%clk 0:02:16]}  Ke8 {[%clk 0:00:06]} 35. h6 {[%clk 0:02:16]}  Bxe2 {[%clk 0:00:02]} 36. h7 {[%clk 0:02:16]} 1-0


[Site "https://www.chess.com"]

[Event "Titled Tuesday Blitz June 20 Late 2023"]
[White "Piesik, Piotr"]
[Black "Rustemov, Alexander"]
[WhiteFideId "1136194"]
[BlackFideId "4119002"]
[WhiteElo "2303"]
[BlackElo "2873"]
[Result "1/2-1/2"]
[Round "2"]
[TimeControl "180+2"]
[Date "2023.06.20"]
[WhiteClock "0:01:01"]
[BlackClock "0:00:11"]
[Board "36"]

1. Nf3 {[%clk 0:02:57]}  Nf6 {[%clk 0:02:59]} 2. g3 {[%clk 0:02:57]}  g6 {[%clk 0:02:57]} 3. Bg2 {[%clk 0:02:57]}  Bg7 {[%clk 0:02:58]} 4. O-O {[%clk 0:02:58]}  O-O {[%clk 0:02:58]} 5. d4 {[%clk 0:02:59]}  d5 {[%clk 0:02:54]} 6. c4 {[%clk 0:02:59]}  c6 {[%clk 0:02:49]} 7. Qb3 {[%clk 0:02:58]}  dxc4 {[%clk 0:02:47]} 8. Qxc4 {[%clk 0:02:58]}  Bf5 {[%clk 0:02:47]} 9. Nc3 {[%clk 0:02:58]}  Ne4 {[%clk 0:02:43]} 10. Rd1 {[%clk 0:02:54]}  Nd7 {[%clk 0:02:39]} 11. Nh4 {[%clk 0:02:51]}  Nxc3 {[%clk 0:02:32]} 12. bxc3 {[%clk 0:02:50]}  Nb6 {[%clk 0:02:26]} 13. Qb4 {[%clk 0:02:46]}  Be6 {[%clk 0:02:26]} 14. e4 {[%clk 0:02:44]}  Qd7 {[%clk 0:02:15]} 15. a4 {[%clk 0:02:39]}  Rac8 {[%clk 0:02:05]} 16. Bg5 {[%clk 0:02:30]}  Rfe8 {[%clk 0:02:02]} 17. a5 {[%clk 0:02:30]}  Nc4 {[%clk 0:02:02]} 18. Bf1 {[%clk 0:02:29]}  Nd6 {[%clk 0:01:59]} 19. f3 {[%clk 0:02:26]}  h6 {[%clk 0:01:52]} 20. Be3 {[%clk 0:02:26]}  g5 {[%clk 0:01:52]} 21. Ng2 {[%clk 0:02:25]}  g4 {[%clk 0:01:53]} 22. e5 {[%clk 0:02:22]}  gxf3 {[%clk 0:01:46]} 23. exd6 {[%clk 0:02:20]}  fxg2 {[%clk 0:01:46]} 24. Bxg2 {[%clk 0:02:20]}  exd6 {[%clk 0:01:42]} 25. Bf4 {[%clk 0:02:18]}  Bd5 {[%clk 0:01:33]} 26. Qxd6 {[%clk 0:02:11]}  Qxd6 {[%clk 0:01:31]} 27. Bxd6 {[%clk 0:02:11]}  Bxg2 {[%clk 0:01:25]} 28. Kxg2 {[%clk 0:02:11]}  Re2+ {[%clk 0:01:26]} 29. Kh3 {[%clk 0:02:11]}  Rd8 {[%clk 0:01:26]} 30. Bf4 {[%clk 0:02:00]}  Rd5 {[%clk 0:01:21]} 31. g4 {[%clk 0:01:59]}  Rc2 {[%clk 0:01:17]} 32. Rac1 {[%clk 0:01:46]}  Rxc1 {[%clk 0:01:15]} 33. Rxc1 {[%clk 0:01:47]}  Rxa5 {[%clk 0:01:15]} 34. Kg3 {[%clk 0:01:47]}  Ra3 {[%clk 0:01:02]} 35. Kf2 {[%clk 0:01:46]}  b5 {[%clk 0:01:00]} 36. Ke2 {[%clk 0:01:44]}  a5 {[%clk 0:00:59]} 37. h4 {[%clk 0:01:43]}  a4 {[%clk 0:00:59]} 38. c4 {[%clk 0:01:38]}  b4 {[%clk 0:00:58]} 39. d5 {[%clk 0:01:38]}  cxd5 {[%clk 0:00:57]} 40. cxd5 {[%clk 0:01:39]}  Rc3 {[%clk 0:00:55]} 41. Rxc3 {[%clk 0:01:37]}  Bxc3 {[%clk 0:00:54]} 42. d6 {[%clk 0:01:31]}  Bf6 {[%clk 0:00:44]} 43. d7 {[%clk 0:01:23]}  a3 {[%clk 0:00:42]} 44. Be5 {[%clk 0:01:22]}  Bxh4 {[%clk 0:00:41]} 45. Kd3 {[%clk 0:01:18]}  b3 {[%clk 0:00:38]} 46. Kc3 {[%clk 0:01:07]}  b2 {[%clk 0:00:37]} 47. Kc2 {[%clk 0:01:07]}  Bd8 {[%clk 0:00:33]} 48. Bd6 {[%clk 0:01:06]}  Kg7 {[%clk 0:00:26]} 49. Bxa3 {[%clk 0:01:05]}  Kg6 {[%clk 0:00:25]} 50. Bxb2 {[%clk 0:01:02]}  Kg5 {[%clk 0:00:22]} 51. Bc1+ {[%clk 0:01:02]}  Kxg4 {[%clk 0:00:22]} 52. Bxh6 {[%clk 0:01:02]}  Kf5 {[%clk 0:00:22]} 53. Kd3 {[%clk 0:01:02]}  Ke6 {[%clk 0:00:22]} 54. Ke4 {[%clk 0:01:02]}  Kxd7 {[%clk 0:00:23]} 55. Kf5 {[%clk 0:01:02]}  Ke8 {[%clk 0:00:22]} 56. Bg7 {[%clk 0:01:01]}  Be7 {[%clk 0:00:22]} 57. Bd4 {[%clk 0:01:01]}  Kd7 {[%clk 0:00:11]} 58. Bc3 {[%clk 0:01:00]}  Kc6 {[%clk 0:00:11]} 59. Be5 {[%clk 0:01:00]}  Kd5 {[%clk 0:00:11]} 60. Bg7 {[%clk 0:00:59]}  Kd6 {[%clk 0:00:10]} 61. Be5+ {[%clk 0:00:59]}  Kd7 {[%clk 0:00:11]} 62. Bg7 {[%clk 0:00:59]}  Ke8 {[%clk 0:00:11]} 63. Be5 {[%clk 0:01:00]}  Bd8 {[%clk 0:00:11]} 64. Bd4 {[%clk 0:01:00]}  Kf8 {[%clk 0:00:11]} 65. Bc5+ {[%clk 0:01:00]}  Be7 {[%clk 0:00:12]} 66. Bd4 {[%clk 0:01:00]}  Kg8 {[%clk 0:00:12]} 67. Be5 {[%clk 0:01:00]}  Kf8 {[%clk 0:00:12]} 68. Bd4 {[%clk 0:01:01]}  Ke8 {[%clk 0:00:12]} 69. Be5 {[%clk 0:01:01]}  Bd8 {[%clk 0:00:12]} 70. Bc3 {[%clk 0:01:01]}  Be7 {[%clk 0:00:11]} 71. Be5 {[%clk 0:01:01]} 1/2-1/2


[Site "https://www.chess.com"]

[Event "Titled Tuesday Blitz June 20 Late 2023"]
[White "Babazada, Khazar"]
[Black "Banzea, Alexandru-Bogdan"]
[WhiteFideId "13413554"]
[BlackFideId "1232622"]
[WhiteElo "2369"]
[BlackElo "2294"]
[Result "1-0"]
[Round "2"]
[TimeControl "180+2"]
[Date "2023.06.20"]
[WhiteClock "0:02:42"]
[BlackClock "0:00:19"]
[Board "37"]

1. e4 {[%clk 0:03:00]}  c6 {[%clk 0:02:58]} 2. d4 {[%clk 0:03:00]}  d5 {[%clk 0:02:58]} 3. Nc3 {[%clk 0:03:01]}  dxe4 {[%clk 0:02:59]} 4. Nxe4 {[%clk 0:03:02]}  Nf6 {[%clk 0:02:59]} 5. Nxf6+ {[%clk 0:03:02]}  exf6 {[%clk 0:03:00]} 6. c3 {[%clk 0:03:03]}  Bd6 {[%clk 0:03:01]} 7. Bd3 {[%clk 0:03:04]}  O-O {[%clk 0:03:02]} 8. Qc2 {[%clk 0:03:05]}  Re8+ {[%clk 0:03:02]} 9. Ne2 {[%clk 0:03:05]}  h6 {[%clk 0:03:03]} 10. Bd2 {[%clk 0:03:03]}  Nd7 {[%clk 0:03:03]} 11. O-O-O {[%clk 0:03:02]}  Nb6 {[%clk 0:02:46]} 12. c4 {[%clk 0:03:02]}  Nd7 {[%clk 0:02:28]} 13. Ng3 {[%clk 0:03:02]}  Nf8 {[%clk 0:02:24]} 14. Rhe1 {[%clk 0:02:56]}  Rxe1 {[%clk 0:02:18]} 15. Rxe1 {[%clk 0:02:57]}  Bxg3 {[%clk 0:01:57]} 16. hxg3 {[%clk 0:02:58]}  Ne6 {[%clk 0:01:57]} 17. Bc3 {[%clk 0:02:58]}  Bd7 {[%clk 0:01:44]} 18. Qe2 {[%clk 0:02:51]}  b5 {[%clk 0:01:26]} 19. cxb5 {[%clk 0:02:52]}  cxb5 {[%clk 0:01:26]} 20. d5 {[%clk 0:02:52]}  Nc5 {[%clk 0:01:23]} 21. Bc2 {[%clk 0:02:50]}  Rc8 {[%clk 0:01:13]} 22. Kb1 {[%clk 0:02:50]}  a5 {[%clk 0:01:12]} 23. Bd4 {[%clk 0:02:45]}  b4 {[%clk 0:00:59]} 24. Qe3 {[%clk 0:02:43]}  Qc7 {[%clk 0:00:38]} 25. Rc1 {[%clk 0:02:42]}  Qd6 {[%clk 0:00:27]} 26. Bxc5 {[%clk 0:02:42]}  Rxc5 {[%clk 0:00:19]} 27. Qxc5 {[%clk 0:02:42]} 1-0


[Site "https://www.chess.com"]

[Event "Titled Tuesday Blitz June 20 Late 2023"]
[White "Mendez Fortes, Eduardo Jesus"]
[Black "Holt, Conrad"]
[WhiteFideId "3502376"]
[BlackFideId "2034387"]
[WhiteElo "2307"]
[BlackElo "2592"]
[Result "1-0"]
[Round "2"]
[TimeControl "180+2"]
[Date "2023.06.20"]
[WhiteClock "0:01:57"]
[BlackClock "0:00:05"]
[Board "38"]

1. e4 {[%clk 0:03:00]}  e6 {[%clk 0:03:00]} 2. d4 {[%clk 0:03:00]}  d5 {[%clk 0:03:00]} 3. Nd2 {[%clk 0:03:01]}  c5 {[%clk 0:03:00]} 4. exd5 {[%clk 0:03:01]}  Qxd5 {[%clk 0:03:00]} 5. Ngf3 {[%clk 0:03:02]}  cxd4 {[%clk 0:03:00]} 6. Bc4 {[%clk 0:03:03]}  Qd6 {[%clk 0:03:01]} 7. O-O {[%clk 0:03:04]}  Nf6 {[%clk 0:03:01]} 8. Nb3 {[%clk 0:03:05]}  Nc6 {[%clk 0:03:02]} 9. Nbxd4 {[%clk 0:03:05]}  Nxd4 {[%clk 0:03:02]} 10. Nxd4 {[%clk 0:03:06]}  a6 {[%clk 0:03:03]} 11. Re1 {[%clk 0:03:07]}  Be7 {[%clk 0:03:02]} 12. c3 {[%clk 0:03:07]}  O-O {[%clk 0:03:00]} 13. Qe2 {[%clk 0:03:06]}  b5 {[%clk 0:02:49]} 14. Bd3 {[%clk 0:03:06]}  Bb7 {[%clk 0:02:48]} 15. Bg5 {[%clk 0:03:06]}  Qd5 {[%clk 0:02:42]} 16. Nf3 {[%clk 0:03:05]}  Rfd8 {[%clk 0:02:40]} 17. Bc2 {[%clk 0:03:00]}  Qc5 {[%clk 0:02:28]} 18. Bh4 {[%clk 0:02:52]}  Qh5 {[%clk 0:02:21]} 19. Bg3 {[%clk 0:02:50]}  Bxf3 {[%clk 0:02:15]} 20. gxf3 {[%clk 0:02:50]}  a5 {[%clk 0:01:49]} 21. Red1 {[%clk 0:02:38]}  b4 {[%clk 0:01:46]} 22. Rxd8+ {[%clk 0:02:35]}  Rxd8 {[%clk 0:01:39]} 23. cxb4 {[%clk 0:02:27]}  axb4 {[%clk 0:01:38]} 24. Bb3 {[%clk 0:02:27]}  Qf5 {[%clk 0:01:22]} 25. Rc1 {[%clk 0:02:23]}  h6 {[%clk 0:01:09]} 26. Rc7 {[%clk 0:02:21]}  Bd6 {[%clk 0:01:01]} 27. Bxd6 {[%clk 0:02:19]}  Rxd6 {[%clk 0:01:00]} 28. Rc8+ {[%clk 0:02:19]}  Kh7 {[%clk 0:00:52]} 29. Bc2 {[%clk 0:02:18]}  Nd5 {[%clk 0:00:50]} 30. Bxf5+ {[%clk 0:02:17]}  exf5 {[%clk 0:00:50]} 31. Rc1 {[%clk 0:02:06]}  Nf4 {[%clk 0:00:42]} 32. Qc2 {[%clk 0:02:03]}  Kg6 {[%clk 0:00:17]} 33. Rd1 {[%clk 0:02:01]}  Re6 {[%clk 0:00:16]} 34. Kf1 {[%clk 0:01:59]}  Kg5 {[%clk 0:00:15]} 35. Qd2 {[%clk 0:01:58]}  Rf6 {[%clk 0:00:10]} 36. h4+ {[%clk 0:01:58]}  Kxh4 {[%clk 0:00:10]} 37. Qxf4+ {[%clk 0:01:59]}  Kh5 {[%clk 0:00:10]} 38. Rd5 {[%clk 0:01:57]}  Kg6 {[%clk 0:00:05]} 39. Qxb4 {[%clk 0:01:57]} 1-0


[Site "https://www.chess.com"]

[Event "Titled Tuesday Blitz June 20 Late 2023"]
[White "Baskakov, Egor"]
[Black "Sharan, Rao"]
[WhiteFideId "24197866"]
[BlackFideId "5073464"]
[WhiteElo "2225"]
[BlackElo "2149"]
[Result "1-0"]
[Round "2"]
[TimeControl "180+2"]
[Date "2023.06.20"]
[WhiteClock "0:01:12"]
[BlackClock "0:00:52"]
[Board "39"]

1. e4 {[%clk 0:03:00]}  d5 {[%clk 0:02:59]} 2. Nc3 {[%clk 0:02:59]}  c6 {[%clk 0:02:58]} 3. g3 {[%clk 0:02:58]}  Nf6 {[%clk 0:02:57]} 4. Bg2 {[%clk 0:02:58]}  dxe4 {[%clk 0:02:56]} 5. Nxe4 {[%clk 0:02:59]}  Nxe4 {[%clk 0:02:56]} 6. Bxe4 {[%clk 0:03:00]}  g6 {[%clk 0:02:57]} 7. d4 {[%clk 0:03:00]}  Bg7 {[%clk 0:02:57]} 8. Ne2 {[%clk 0:03:00]}  O-O {[%clk 0:02:57]} 9. O-O {[%clk 0:03:00]}  Bh3 {[%clk 0:02:58]} 10. Re1 {[%clk 0:02:59]}  Nd7 {[%clk 0:02:58]} 11. Nf4 {[%clk 0:02:58]}  Bf5 {[%clk 0:02:56]} 12. Bxf5 {[%clk 0:02:57]}  gxf5 {[%clk 0:02:57]} 13. Be3 {[%clk 0:02:46]}  Nf6 {[%clk 0:02:57]} 14. c4 {[%clk 0:02:42]}  e6 {[%clk 0:02:56]} 15. Qf3 {[%clk 0:02:37]}  Kh8 {[%clk 0:02:54]} 16. Rad1 {[%clk 0:02:38]}  Qa5 {[%clk 0:02:53]} 17. d5 {[%clk 0:02:36]}  cxd5 {[%clk 0:02:52]} 18. cxd5 {[%clk 0:02:37]}  exd5 {[%clk 0:02:29]} 19. Nxd5 {[%clk 0:02:35]}  Nxd5 {[%clk 0:02:29]} 20. Qxd5 {[%clk 0:02:36]}  Qxd5 {[%clk 0:02:27]} 21. Rxd5 {[%clk 0:02:37]}  Bxb2 {[%clk 0:02:26]} 22. Rb1 {[%clk 0:02:37]}  Bc3 {[%clk 0:02:18]} 23. Rxb7 {[%clk 0:02:36]}  a5 {[%clk 0:02:16]} 24. Rxf5 {[%clk 0:02:33]}  Kg7 {[%clk 0:02:17]} 25. Rg5+ {[%clk 0:02:27]}  Kf6 {[%clk 0:02:13]} 26. Rc5 {[%clk 0:02:26]}  Bb4 {[%clk 0:02:07]} 27. Rb6+ {[%clk 0:02:23]}  Ke7 {[%clk 0:02:00]} 28. Rc7+ {[%clk 0:02:22]}  Kd8 {[%clk 0:02:00]} 29. Rbb7 {[%clk 0:02:19]}  Rc8 {[%clk 0:01:56]} 30. Rd7+ {[%clk 0:02:05]}  Ke8 {[%clk 0:01:56]} 31. Bh6 {[%clk 0:02:01]}  Rg8 {[%clk 0:01:52]} 32. Rxf7 {[%clk 0:02:00]}  Rb8 {[%clk 0:01:33]} 33. Rxb8+ {[%clk 0:01:39]}  Kxf7 {[%clk 0:01:33]} 34. Rxg8 {[%clk 0:01:40]}  Kxg8 {[%clk 0:01:33]} 35. Kf1 {[%clk 0:01:37]}  a4 {[%clk 0:01:33]} 36. Ke2 {[%clk 0:01:37]}  Kf7 {[%clk 0:01:31]} 37. Kd3 {[%clk 0:01:37]}  Be1 {[%clk 0:01:31]} 38. Be3 {[%clk 0:01:35]}  Ke6 {[%clk 0:01:31]} 39. Kc4 {[%clk 0:01:35]}  Kf5 {[%clk 0:01:22]} 40. f3 {[%clk 0:01:31]}  h5 {[%clk 0:01:07]} 41. Kb5 {[%clk 0:01:26]}  a3 {[%clk 0:01:06]} 42. Ka4 {[%clk 0:01:25]}  h4 {[%clk 0:01:07]} 43. gxh4 {[%clk 0:01:24]}  Bxh4 {[%clk 0:01:08]} 44. Kxa3 {[%clk 0:01:22]}  Be7+ {[%clk 0:01:08]} 45. Kb3 {[%clk 0:01:22]}  Bd6 {[%clk 0:01:09]} 46. h3 {[%clk 0:01:20]}  Bc7 {[%clk 0:01:10]} 47. a4 {[%clk 0:01:19]}  Ke6 {[%clk 0:01:08]} 48. Kc4 {[%clk 0:01:19]}  Kd7 {[%clk 0:01:08]} 49. Kb5 {[%clk 0:01:19]}  Kc8 {[%clk 0:01:09]} 50. a5 {[%clk 0:01:16]}  Kb7 {[%clk 0:01:10]} 51. a6+ {[%clk 0:01:17]}  Ka8 {[%clk 0:01:10]} 52. Kc6 {[%clk 0:01:17]}  Be5 {[%clk 0:01:10]} 53. h4 {[%clk 0:01:16]}  Bf6 {[%clk 0:01:10]} 54. h5 {[%clk 0:01:16]}  Bg7 {[%clk 0:01:10]} 55. h6 {[%clk 0:01:15]}  Bh8 {[%clk 0:01:09]} 56. h7 {[%clk 0:01:15]}  Be5 {[%clk 0:01:08]} 57. Kd7 {[%clk 0:01:12]}  Bg7 {[%clk 0:01:06]} 58. Ke7 {[%clk 0:01:12]}  Kb8 {[%clk 0:00:59]} 59. Kf7 {[%clk 0:01:12]}  Bh8 {[%clk 0:00:59]} 60. Bg5 {[%clk 0:01:10]}  Ka7 {[%clk 0:00:58]} 61. Bh6 {[%clk 0:01:11]}  Kxa6 {[%clk 0:00:52]} 62. Bg7 {[%clk 0:01:12]} 1-0


[Site "https://www.chess.com"]